Cogmind - Beta 9.2 @@@ ROGUE MODE // 2019.12.02 @ 23:45:41 Player: Fleshy Vegetable Bird Result: Self-destructed Performance ------------- Evolutions (2) 1000 Regions Visited (3) 600 Robots Destroyed (12) 60 Value Destroyed (192) 192 Prototype IDs (0) 0 Alien Tech Used (0) 0 Bonus (0) 0 TOTAL SCORE: 1852 Bonus ------- None Cogmind --------- Core Integrity 550/550 Matter 252/300 Energy 265/265 System Corruption 0% Temperature Cool (91) Movement Treading (160) Location -8/Materials Parts ------- > --- POWER (1) -------- Improved Ion Engine > --- PROPULSION (3) --- Light Treads Light Treads > --- UTILITY (3) ------ Small Storage Unit Small Storage Unit Hacking Suite > --- WEAPON (4) ------- Beam Rifle > --- INVENTORY (8) ---- Wheel Heat Sink Peak State ------------ > --- POWER ------------ Improved Ion Engine > --- PROPULSION ------- Light Treads Light Treads Light Treads > --- UTILITY ---------- Small Storage Unit Small Storage Unit Hacking Suite > --- WEAPON ----------- Beam Rifle > --- INVENTORY -------- Wheel Heat Sink [Rating: 12] Favorites ----------- Power Ion Engine Engine Ion Engine Propulsion Wheel Treads Light Treads Wheel Wheel Utility Small Storage Unit Storage Small Storage Unit Hackware Hacking Suite Weapon Medium Laser Energy Gun Medium Laser Build | -11 -10 -9 -8 ------- Run | Scr Mat Mat Mat Slots Evolved 4 | . . 2 2 Power . | . . . . Propulsion 1 | . . 1 . Utility 1 | . . . 1 Weapon 2 | . . 1 1 Parts Attached 18 | 8 . 8 2 Power 2 | 1 . 1 . Engine 2 | 1 . 1 . Core . | . . . . Reactor . | . . . . Propulsion 9 | 3 . 6 . Treads 3 | . . 3 . Leg . | . . . . Wheel 6 | 3 . 3 . Hover . | . . . . Flight . | . . . . Utility 3 | 2 . . 1 Device . | . . . . Storage 2 | 2 . . . Processor . | . . . . Hackware 1 | . . . 1 Protection . | . . . . Artifact . | . . . . Weapon 4 | 2 . 1 1 Energy Gun 4 | 2 . 1 1 Energy Cannon . | . . . . Ballistic Gun . | . . . . Ballistic Cannon . | . . . . Launcher . | . . . . Special Weapon . | . . . . Impact Weapon . | . . . . Slashing Weapon . | . . . . Piercing Weapon . | . . . . Special Melee Weapon . | . . . . Unidentified Prototypes . | . . . . Parts Lost 8 | . . 7 1 Power 1 | . . 1 . Propulsion 4 | . . 3 1 Utility . | . . . . Weapon 3 | . . 3 . Highest Loss Streak 7 | . . 7 1 Average Slot Usage (%) 89 | . 100 93 67 Engine 10 | . 14 10 9 Treads 6 | . . 2 27 Wheel 24 | . 28 29 . Storage 22 | . 28 22 18 Energy Gun 24 | . 28 27 9 Naked Turns . | . . . . Heaviest Build 19 | 17 17 19 18 Greatest Support 60 | 26 20 60 60 Greatest Overweight (x) 5 | 5 . . . Average Overweight (x) . | . . . . Largest Inventory Capacity 8 | 8 8 8 8 Average Capacity 7 | 7 8 8 8 Most Carried 8 | 8 8 8 3 Average Carried 6 | 4 8 7 2 Final Capacity 8 | 8 8 8 8 Final Carried 8 | 8 8 4 2 Class Distribution -------------------- 48% | Mutant 45% | Gunner 5% | Scavenger-Mutant Dominant Class ---------------- Mutant | -10/Materials Gunner | -9/Materials Scavenger-Mutant | -8/Materials Resources | -11 -10 -9 -8 ----------- Run | Scr Mat Mat Mat Matter Collected 310 | 280 . 30 . Remotely . | . . . . Salvage Created 364 | 177 . 145 42 Parts 24 | 9 . 12 3 Haulers Intercepted . | . . . . Recyclers Shooed . | . . . . Parts Field Recycled . | . . . . Retrieved Matter . | . . . . Parts Self-Destructed . | . . . . Prevented . | . . . . Kills | -11 -10 -9 -8 ------- Run | Scr Mat Mat Mat Combat Hostiles Destroyed 4 | . . 3 1 Guns 4 | . . 3 1 Classes Destroyed 8 | 3 . 5 . Worker 1 | 1 . . . Builder 1 | . . 1 . Tunneler 4 | 4 . . . Recycler 1 | 1 . . . Operator 1 | . . 1 . Swarmer 1 | . . 1 . Grunt 2 | . . 1 1 Sentry 1 | . . 1 . Best Kill Streak 3 | 2 . 3 1 Combat Bots Only 1 | . . 1 1 Max Kills in Single Turn 1 | 1 . 1 1 Gunslinging . | . . . . Exploded . | . . . . Melee . | . . . . Uniques/NPCs Destroyed . | . . . . Combat | -11 -10 -9 -8 -------- Run | Scr Mat Mat Mat Damage Taken 1022 | . 42 643 337 Core 170 | . . 170 . Absorbed by Shields . | . . . . Core Remaining (%) 85 | 100 100 57 . Volleys Fired 42 | 13 . 18 11 Largest 3 | 2 . 3 1 Hottest 150 | 100 . 150 56 Shots Fired 84 | 26 . 47 11 Gun 84 | 26 . 47 11 Cannon . | . . . . Launcher . | . . . . Special . | . . . . Kinetic . | . . . . Thermal 84 | 26 . 47 11 Explosive . | . . . . Electromagnetic . | . . . . Robot Hit Streak 10 | 9 . 5 10 Robot Miss Streak 7 | 2 . 7 1 Penetration Max . | . . . . Secondary Targets 1 | . . 1 . Max Gunslinging Chain 1 | . . 1 . Shots Hit Robots 48 | 16 . 22 10 Core Hits 21 | 7 . 11 3 Critical Hits . | . . . . Critical Kills . | . . . . Critical Parts Destroyed . | . . . . Melee Attacks . | . . . . Impact . | . . . . Slashing . | . . . . Piercing . | . . . . Sneak Attacks . | . . . . Combat Hostiles . | . . . . Follow-up Attacks . | . . . . Damage Inflicted 699 | 239 . 316 144 Guns 695 | 239 . 312 144 Cannons . | . . . . Explosions . | . . . . Melee . | . . . . Ramming 4 | . . 4 . Kinetic . | . . . . Thermal 695 | 239 . 312 144 Explosive . | . . . . Electromagnetic . | . . . . Impact . | . . . . Slashing . | . . . . Piercing . | . . . . Highest Corruption . | . . . . Average Corruption . | . . . . Corruption Purged . | . . . . Overload Shots . | . . . . Overflow Damage . | . . . . Projectiles . | . . . . Explosions . | . . . . Melee . | . . . . Knockbacks . | . . . . Impact . | . . . . Kinetic . | . . . . Secondary . | . . . . Self-Inflicted Damage . | . . . . Shots . | . . . . Rammed 2 | . . 2 . Targets Rammed 2 | . . 2 . Kicked . | . . . . Crushed . | . . . . Highest Temperature 345 | 215 . 345 91 Average Temperature 126 | 98 . 159 54 Received Heat Transfer 162 | . 24 66 72 Effects 2 | . . 2 . Energy Bleed 1 | . . 1 . Short Circuit 1 | . . 1 . Siege Activations . | . . . . Robots Corrupted . | . . . . Combat Hostiles . | . . . . Parts Fried . | . . . . Impact Corruptions . | . . . . Robots Melted . | . . . . Combat Hostiles . | . . . . Parts Melted 4 | 3 . 1 . Heat Transferred 1998 | 703 . 925 370 Parts Sabotaged . | . . . . Parts Stolen . | . . . . Parts Stripped . | . . . . Power Chain Reactions . | . . . . Missiles Intercepted . | . . . . Alert | -11 -10 -9 -8 ------- Run | Scr Mat Mat Mat Peak Influence 117 | 30 19 117 44 Average Influence 51 | 13 19 81 29 Maximum Alert Level . | . . . . Low Security (%) 100 | 100 100 100 100 Level 1 . | . . . . Level 2 . | . . . . Level 3 . | . . . . Level 4 . | . . . . Level 5 . | . . . . High Security . | . . . . Max Security . | . . . . Squads Dispatched 2 | . 1 1 . Investigation . | . . . . Extermination . | . . . . Reinforcement 2 | . 1 1 . Assault . | . . . . Garrison . | . . . . Intercept . | . . . . Construction Impeded . | . . . . Haulers Reinforced . | . . . . Stealth | -11 -10 -9 -8 --------- Run | Scr Mat Mat Mat Distress Signals 2 | . . 1 1 Communications Jammed . | . . . . Distress Signals . | . . . . Times Spotted 19 | . 3 12 4 Peak Tracking Total 6 | . 2 6 4 Tactical Retreats . | . . . . Traps | -11 -10 -9 -8 ------- Run | Scr Mat Mat Mat Traps Triggered . | . . . . Indirectly . | . . . . Trap Hack Attempts . | . . . . Triggered . | . . . . Disarmed . | . . . . Reprogrammed . | . . . . Reused . | . . . . Traps Extracted . | . . . . Installed . | . . . . Triggered . | . . . . Machines | -11 -10 -9 -8 ---------- Run | Scr Mat Mat Mat Machines Disabled . | . . . . Max in Single Turn . | . . . . Machines Sabotaged . | . . . . Garrisons Compromised . | . . . . Overloaded Fab Kills . | . . . . Fab Network Shutdowns . | . . . . Hacking | -11 -10 -9 -8 --------- Run | Scr Mat Mat Mat Machines Accessed 2 | . . 1 1 Terminals 2 | . . 1 1 Fabricators . | . . . . Repair Stations . | . . . . Recycling Units . | . . . . Scanalyzers . | . . . . Garrison Access . | . . . . Total Hacks 5 | . . 3 2 Successful 4 | . . 3 1 Failed 1 | . . . 1 Catastrophic . | . . . . Database Lockouts . | . . . . Manual 5 | . . 3 2 Terminals 5 | . . 3 2 Fabricators . | . . . . Repair Stations . | . . . . Recycling Units . | . . . . Scanalyzers . | . . . . Garrison Access . | . . . . Terminal Hacks 1 | . . 1 . Terminal Index 1 | . . 1 . Fabricator Hacks . | . . . . Repair Station Hacks . | . . . . Recycling Unit Hacks . | . . . . Scanalyzer . | . . . . Garrison Access Hacks . | . . . . Unauthorized Hacks 7 | . . 4 3 Terminals 3 | . . 2 1 Track 1 | . . 1 . Botnet 2 | . . 1 1 Fabricators . | . . . . Repair Stations . | . . . . Recycling Units . | . . . . Scanalyzers . | . . . . Garrison Access . | . . . . Data Cores Recovered . | . . . . Used . | . . . . Hacking Detections 2 | . . 1 1 Full Trace Events . | . . . . Feedback Events . | . . . . Feedback Blocked . | . . . . Robot Schematics Acquired . | . . . . Robots Built . | . . . . Matter . | . . . . Time . | . . . . Total Robot Build Rating . | . . . . Part Schematics Acquired . | . . . . Parts Built . | . . . . Matter . | . . . . Time . | . . . . Total Part Build Rating . | . . . . Parts Repaired . | . . . . Time . | . . . . Parts Recycled . | . . . . Recycled Matter . | . . . . Retrieved Matter . | . . . . Retrieved Components . | . . . . Parts Scanalyzed . | . . . . Part Schematics Acquired . | . . . . Parts Damaged . | . . . . Bothacking | -11 -10 -9 -8 ------------ Run | Scr Mat Mat Mat Used RIF Installer . | . . . . Robots Hacked . | . . . . Non-combat . | . . . . Combat . | . . . . Robot Hacks Applied . | . . . . Relay Couplers Released . | . . . . Robots Rewired . | . . . . Allies Hacked . | . . . . Hacks Repelled . | . . . . Allies | -11 -10 -9 -8 -------- Run | Scr Mat Mat Mat Total Allies . | . . . . Largest Group . | . . . . Highest-Rated Group . | . . . . Highest-Rated Ally . | . . . . Total Orders . | . . . . Ally Attacks . | . . . . Total Damage . | . . . . Kills . | . . . . Allies Corrupted . | . . . . Allies Melted . | . . . . Intel | -11 -10 -9 -8 ------- Run | Scr Mat Mat Mat Robot Analysis Total . | . . . . Derelict Logs Recovered . | . . . . Drone Launches . | . . . . Drone Recoveries . | . . . . Exploration | -11 -10 -9 -8 ------------- Run | Scr Mat Mat Mat Turns Passed 478 | 126 33 253 66 Spaces Moved 271 | 59 41 145 26 Core 23 | 23 . . . Treads 34 | . . 8 26 Legs . | . . . . Wheels 214 | 36 41 137 . Hover . | . . . . Flight . | . . . . Fastest Speed 50 | 50 80 80 160 Average Speed 94 | 102 80 84 160 Slowest Speed 300 | 300 80 160 160 Overloaded Moves . | . . . . Propulsion Burnouts . | . . . . Robots Hopped . | . . . . Cave-ins Triggered . | . . . . Exploration Rate (%) 11 | 3 15 22 5 Regions Visited 3 Branch Regions . Pre-discovered Areas . | . . . . Known Exits Taken . | . . . . Unknown Exits Taken 3 | 1 1 1 . Scrap Searched . | . . . . Spaces Dug . | . . . . Terrain Destroyed . | . . . . Melee . | . . . . Projectile . | . . . . AOE . | . . . . Actions | -11 -10 -9 -8 --------- Run | Scr Mat Mat Mat Total 416 | 98 40 239 39 Wait 55 | . . 55 . Move 268 | 58 40 144 26 Hop . | . . . . Pick Up 24 | 17 . 7 . Fast Attach . | . . . . Attach 16 | 7 . 7 2 Detach . | . . . . Swap 2 | 1 . 1 . Drop 7 | 2 . 5 . Fire 42 | 13 . 18 11 Melee . | . . . . Ram . | . . . . Kick . | . . . . Crush 2 | . . 2 . Escape Stasis . | . . . . Rewire . | . . . . Trap . | . . . . Miscellaneous . | . . . . Route ------- -11/Scrapyard -10/Materials -9/Materials -8/Materials History --------- Turn | Location | Event 6 | -11/Scrapyard | Discovered new exit (range 15) 127 | -11/Scrapyard | Entered Materials 154 | -10/Materials | Discovered new exit (range 8) 160 | -10/Materials | Entered another Materials area 160 | -9/Materials | Evolved 2 slots: Propulsion x1, Weapon x1 380 | -9/Materials | Discovered new exit (range 15) 413 | -9/Materials | Entered another Materials area 413 | -8/Materials | Evolved 2 slots: Utility x1, Weapon x1 425 | -8/Materials | Lost 7 parts (1p3n3w) 479 | -8/Materials | Self-destructed Last Messages --------------- 00397_ K-01 Serf collects debris. 00402_ Slammed into S-10 Pest. 00404_ K-01 Serf cleans the Neutrino Reactor. 00411_ K-01 Serf collects debris. PARAMETERS=UTILITY_1,WEAPON_1 LOCATION=UNKNOWN GOAL=ESCAPE 00441_ Connecting with Terminal... 00441_ Current location identified: Materials >>Trojan(Botnet) Trojan loaded successfully. Testing... Terminal linked with 0 systems. Awaiting botnet instructions. 00461_ G-47 Trooper destroyed. 00468_ R-06 Scavenger collects Aluminum Leg. 00472_ R-06 Scavenger collects Particle Gun. 00475_ R-06 Scavenger collects Lgt. Nuclear Core. 00476_ Hadron Collector disabled. 00478_ Lgt. Treads destroyed. Map ----- +----------------------------------------------------+ | ?????????????????????????????????????????????????? | | ?????????????????????????????????????????????????? | | ?????????????????????????????????????????????????? | | ?????????????????????????????????????????????????? | | ?????????????????????????????????????????????????? | | ?????????????????????????????????????????????????? | | ?????????????????????????????????????????????????? | | ?????????????????????????????????????????????????? | | ?????????????????????????????????????????????????? | | ???????????????????????? ?????????????????????? | | ???????????????????????? ?????????????????????? | | ??????????????????????? ?????????????????????? | | ??????????????????????? ?????????????????????? | | ??????????????????????? ?????????????????????? | | ??????????????????????? #?????????????????????? | | ??????????????????????? #?????????????????????? | | ????????????????? ????? #?????????????????????? | | ?????????????????? ??? #?????????????????????? | | ????????????????? #?????????????????????? | | ?????????????????""" """ #?????????????????????? | | ?????????????????""" """ #?????????????????????? | | ??????????????+? """ """ #?????????????????????? | | ??????????????# """ """ ##????????????????????? | | ??????????????# "#????????????????????? | | ??????????????# g T#????????????????????? | | ???????????? """ "" @l"#????????????????????? | | ????????????? ??""" """ ##????????????????????? | | ????????????? """ """ #?????????????????????? | | ??????????????# """ """r #??######?????????????? | | ??????????????# w #? ??????????????? | | ??????????????# #? """"??????????????? | | ??????????????# # """"??????????????? | | ??????????????# # """" #????????????? | | ??????????????# + #????????????? | | ??????????????# # """" #????????????? | | ??????????????####+### # """"??????????????? | | ?????????????????????# #? """"??????????????? | | ?????????????????????# #? ??????????????? | | ?????????????????????# #??######?????????????? | | ?????????????????????# #?????????????????????? | | ?????????????????????# #?????????????????????? | | ?????????????????????# #?????????????????????? | | ?????????????????????# #?????????????????????? | | ?????????????????????#######?????????????????????? | | ?????????????????????????????????????????????????? | | ?????????????????????????????????????????????????? | | ?????????????????????????????????????????????????? | | ?????????????????????????????????????????????????? | | ?????????????????????????????????????????????????? | | ?????????????????????????????????????????????????? | +----------------------------------------------------+ Best States ------------- Heat Dissipation 31 Energy Generation 12 Energy Capacity 265 Matter Stores 300 Matter Capacity 300 Sight Range 16 Terrain Scan Density 10 Evasion (%) 50 Recoil Reduction 3 Offensive Hacking 10 Item Schematics ----------------- None Robot Schematics ------------------ None Fabricated ------------ Nothing Alien Tech Used ----------------- None Achievements -------------- None Challenges ------------ None Game ------ Seed PulseChargeCloak Manual? 0 Play Time 00:05:50 Cumulative 203.7 hours Start 2019.12.02 @ 23:40:16 End 2019.12.02 @ 23:45:41 Sessions 1 Manual Loads 0 Difficulty Rogue Special Mode None Game No. 280 Rogue 280 Adventurer 0 Explorer 0 Win Type - Total 2 Types 1/0/0/1/0/0/0 Lore% 52 Gallery% 75 Achievement% 52 Wizard Run 0 Options --------- ASCII 0 Keyboard 0 Movement Numpad Keybinds 0 Fullscreen 1 Font 16/Terminus Map View 75x55 Tactical HUD 1 Map Filters NONE Filters NONE Steam 1 RUN: 524cfef8-9ac7-408b-868d-693245c97526